fUSD/lending_fUSD_20260519
["ID","MTS","AMOUNT","RATE_DAILY","PERIOD"]
[422585723,1779126567000,-605.8275553,0.00011371,2]
[422585722,1779126567000,-2000.0,0.00011361,2]
[422585724,1779126567000,-191.69230446,0.0001143,2]
[422585725,1779126589000,152.0,0.00010842,2]
[422585746,1779126632000,-20002.44,0.00011564,2]
[422585751,1779126632000,-15695.03,0.00011766,2]
[422585755,1779126632000,-160.01,0.00011852,2]
[422585761,1779126632000,-184.91588362,0.00012077,2]
[422585766,1779126632000,-4147.31,0.00012265,2]
[422585762,1779126632000,-250.21,0.00012131,2]
[422585765,1779126632000,-1927.29,0.00012265,2]
[422585754,1779126632000,-3753.48,0.00011825,2]
[422585756,1779126632000,-248.51,0.0001197,2]
[422585758,1779126632000,-43836.43901351,0.00012031,2]
[422585757,1779126632000,-213.77805912,0.00012031,2]
[422585749,1779126632000,-248.51,0.00011678,2]
[422585759,1779126632000,-150.0,0.0001204,2]
[422585745,1779126632000,-1200.0,0.00011563,2]
[422585753,1779126632000,-1001.59004875,0.00011824,2]
[422585750,1779126632000,-150.0,0.00011701,2]
[422585747,1779126632000,-213.77805912,0.00011578,2]
[422585748,1779126632000,-150.0,0.00011587,2]
[422585744,1779126632000,-300.0,0.00011563,2]
[422585742,1779126632000,-300.0,0.00011563,2]
[422585752,1779126632000,-180.0,0.00011815,2]
[422585741,1779126632000,-150.0,0.00011474,2]
[422585739,1779126632000,-429.12170968,0.0001143,2]
[422585737,1779126632000,-351.25097968,0.00011278,2]
[422585740,1779126632000,-200.0,0.00011471,2]
[422585738,1779126632000,-10116.41,0.00011292,2]
[422585735,1779126632000,-170.5767,0.00010979,2]
[422585736,1779126632000,-148.74902032,0.00011278,2]
[422585763,1779126632000,-500.0,0.00012163,2]
[422585743,1779126632000,-300.0,0.00011563,2]
[422585764,1779126632000,-248.51,0.00012262,2]
[422585769,1779126632000,-250.0,0.00012406,2]
[422585767,1779126632000,-217.0,0.00012325,2]
[422585760,1779126632000,-47747.41,0.00012041,2]
[422585824,1779126632000,-3834.6,0.00012897,2]
[422585816,1779126632000,-44243.79418659,0.00012897,2]
[422585819,1779126632000,-561.46356,0.00012897,2]
[422585811,1779126632000,-667489.56667972,0.00012897,2]
[422585814,1779126632000,-32270.11177642,0.00012897,2]
[422585805,1779126632000,-13993.48,0.00012893,2]
[422585807,1779126632000,-151.0,0.00012894,2]
[422585798,1779126632000,-261.08843426,0.00012797,2]
[422585794,1779126632000,-221.02648884,0.00012797,2]
[422585790,1779126632000,-25716.9887,0.00012797,2]
[422585803,1779126632000,-9999.99,0.00012893,2]
[422585801,1779126632000,-248.51,0.00012846,2]
[422585800,1779126632000,-700.0,0.000128,4]
[422585809,1779126632000,-321.59810779,0.00012896,2]
[422585792,1779126632000,-2500.0,0.00012797,2]
[422585822,1779126632000,-2315.788475,0.00012897,2]
[422585796,1779126632000,-155.73624255,0.00012797,2]
[422585773,1779126632000,-200.0,0.000126,4]
[422585778,1779126632000,-420.0,0.000127,2]
[422585771,1779126632000,-248.51,0.00012554,2]
[422585768,1779126632000,-184.03572266,0.00012406,2]
[422585776,1779126632000,-500.0,0.000127,4]
[422585782,1779126632000,-8759.92093273,0.00012746,2]
[422585774,1779126632000,-160.01,0.00012626,2]
[422585786,1779126632000,-190.3,0.00012792,2]
[422585780,1779126632000,-1680.0,0.0001272,2]
[422585784,1779126632000,-2000.0,0.00012781,2]
[422585788,1779126632000,-3671.7282,0.00012797,2]
[422585770,1779126632000,-2000.0,0.00012427,2]
[422586017,1779126638000,-500.0,0.00013698,2]
[422586024,1779126638000,-500.0,0.00013698,2]
[422586019,1779126638000,-500.0,0.00013698,2]
[422586020,1779126638000,-500.0,0.00013698,2]
[422586021,1779126638000,-500.0,0.00013698,2]
[422586022,1779126638000,-500.0,0.00013698,2]
[422586023,1779126638000,-500.0,0.00013698,2]
[422586026,1779126638000,-500.0,0.00013698,2]
[422586038,1779126638000,-941.75,0.00013698,2]
[422586025,1779126638000,-500.0,0.00013698,2]
[422586028,1779126638000,-941.75,0.00013698,2]
[422586029,1779126638000,-941.75,0.00013698,2]
[422586040,1779126638000,-798.95,0.00013698,2]
[422586030,1779126638000,-941.75,0.00013698,2]
[422586036,1779126638000,-941.75,0.00013698,2]
[422586032,1779126638000,-941.75,0.00013698,2]
[422586016,1779126638000,-500.0,0.00013698,2]
[422586027,1779126638000,-530.09266044,0.00013698,2]
[422586013,1779126638000,-592.87696527,0.00013698,2]
[422586001,1779126638000,-200.0,0.00012997,2]
[422586012,1779126638000,-509.4193249,0.00013698,2]
[422585995,1779126638000,-8064.3539,0.00012897,2]
[422585994,1779126638000,-1749284.67532227,0.00012897,2]
[422585997,1779126638000,-500.0,0.000129,2]
[422585996,1779126638000,-1000.0,0.000129,4]
[422585998,1779126638000,-1721.96,0.00012975,2]
[422585999,1779126638000,-1810.35856159,0.00012996,2]
[422586039,1779126638000,-798.95,0.00013698,2]
[422586000,1779126638000,-124762.8558983,0.00012997,2]
[422586002,1779126638000,-283.51,0.00013069,2]
[422586003,1779126638000,-255.0,0.00013124,2]
[422586004,1779126638000,-411.8,0.00013465,2]
[422586007,1779126638000,-500.0,0.00013698,2]
[422586006,1779126638000,-349.53370553,0.00013698,2]
[422586015,1779126638000,-500.0,0.00013698,2]
[422586005,1779126638000,-602.92,0.00013698,2]
[422586008,1779126638000,-502.12015589,0.00013698,2]
[422586009,1779126638000,-500.0,0.00013698,2]
[422586010,1779126638000,-500.0,0.00013698,2]
[422586011,1779126638000,-500.0,0.00013698,2]
[422586014,1779126638000,-475.1641071,0.00013698,2]
[422586031,1779126638000,-941.75,0.00013698,2]
[422586018,1779126638000,-500.0,0.00013698,2]
[422586035,1779126638000,-941.75,0.00013698,2]
[422586079,1779126638000,-500.0,0.00013698,2]
[422586075,1779126638000,-500.0,0.00013698,2]
[422586092,1779126638000,-500.0,0.00013698,2]
[422586090,1779126638000,-500.0,0.00013698,2]
[422586107,1779126638000,-500.0,0.00013698,2]
[422586106,1779126638000,-500.0,0.00013698,2]
[422586096,1779126638000,-500.0,0.00013698,2]
[422586094,1779126638000,-500.0,0.00013698,2]
[422586112,1779126638000,-500.0,0.00013698,2]
[422586102,1779126638000,-500.0,0.00013698,2]
[422586110,1779126638000,-500.0,0.00013698,2]
[422586111,1779126638000,-582.6,0.00013698,2]
[422586108,1779126638000,-500.0,0.00013698,2]
[422586100,1779126638000,-500.0,0.00013698,2]
[422586098,1779126638000,-500.0,0.00013698,2]
[422586104,1779126638000,-500.0,0.00013698,2]
[422586114,1779126638000,-500.0,0.00013698,2]
[422586116,1779126638000,-500.0,0.00013698,2]
[422586033,1779126638000,-941.75,0.00013698,2]
[422586088,1779126638000,-500.0,0.00013698,2]
[422586086,1779126638000,-500.0,0.00013698,2]
[422586109,1779126638000,-500.0,0.00013698,2]
[422586073,1779126638000,-573.0866294,0.00013698,2]
[422586037,1779126638000,-941.75,0.00013698,2]
[422586071,1779126638000,-500.0,0.00013698,2]
[422586034,1779126638000,-941.75,0.00013698,2]
[422586041,1779126638000,-798.95,0.00013698,2]
[422586056,1779126638000,-798.95,0.00013698,2]
[422586043,1779126638000,-798.95,0.00013698,2]
[422586058,1779126638000,-798.95,0.00013698,2]
[422586046,1779126638000,-798.95,0.00013698,2]
[422586050,1779126638000,-798.95,0.00013698,2]
[422586054,1779126638000,-798.95,0.00013698,2]
[422586062,1779126638000,-500.0,0.00013698,2]
[422586048,1779126638000,-798.95,0.00013698,2]
[422586060,1779126638000,-500.0,0.00013698,2]
[422586067,1779126638000,-500.0,0.00013698,2]
[422586065,1779126638000,-500.0,0.00013698,2]
[422586082,1779126638000,-500.0,0.00013698,2]
[422586084,1779126638000,-500.0,0.00013698,2]
[422586077,1779126638000,-500.0,0.00013698,2]
[422586052,1779126638000,-798.95,0.00013698,2]
[422586069,1779126638000,-500.0,0.00013698,2]
[422586211,1779126639000,-9999.99,0.00013699,2]
[422586205,1779126639000,-851.11,0.00013699,2]
[422586213,1779126639000,-34895.25,0.00013699,2]
[422586209,1779126639000,-433.66,0.00013699,2]
[422586207,1779126639000,-190734.85,0.00013699,2]
[422586193,1779126639000,-1487.95,0.00013699,2]
[422586196,1779126639000,-299.99,0.00013699,2]
[422586190,1779126639000,-2201.76,0.00013699,2]
[422586181,1779126639000,-9999.99,0.00013699,2]
[422586187,1779126639000,-999.99,0.00013699,2]
[422586199,1779126639000,-150.99,0.00013699,2]
[422586173,1779126639000,-2130.55,0.00013699,2]
[422586197,1779126639000,-7645.37,0.00013699,2]
[422586201,1779126639000,-9999.99,0.00013699,2]
[422586241,1779126639000,-798.95,0.00013915,2]
[422586217,1779126639000,-1370.74,0.00013699,2]
[422586219,1779126639000,-3222.11,0.00013699,2]
[422586221,1779126639000,-314.44,0.00013699,2]
[422586229,1779126639000,-2500.0,0.00013699,2]
[422586231,1779126639000,-1000.0,0.00013699,2]
[422586233,1779126639000,-810.11,0.000137,2]
[422586239,1779126639000,-941.75,0.00013915,2]
[422586223,1779126639000,-7209.11,0.00013699,2]
[422586237,1779126639000,-941.75,0.00013915,2]
[422586225,1779126639000,-200.0,0.00013699,2]
[422586227,1779126639000,-166.66,0.00013699,2]
[422586235,1779126639000,-166.66,0.00013836,2]
[422586171,1779126639000,-1196.09,0.00013699,2]
[422586215,1779126639000,-9999.99,0.00013699,2]
[422586177,1779126639000,-14129.03,0.00013699,2]
[422586135,1779126639000,-500.0,0.00013698,2]
[422586185,1779126639000,-4999.99,0.00013699,2]
[422586128,1779126639000,-500.0,0.00013698,2]
[422586129,1779126639000,-500.0,0.00013698,2]
[422586133,1779126639000,-500.0,0.00013698,2]
[422586131,1779126639000,-500.0,0.00013698,2]
[422586124,1779126639000,-595.2,0.00013698,2]
[422586137,1779126639000,-500.0,0.00013698,2]
[422586120,1779126639000,-500.0,0.00013698,2]
[422586126,1779126639000,-500.0,0.00013698,2]
[422586118,1779126639000,-500.0,0.00013698,2]
[422586122,1779126639000,-534.75180877,0.00013698,2]
[422586139,1779126639000,-500.0,0.00013698,2]
[422586153,1779126639000,-500.0,0.00013698,2]
[422586155,1779126639000,-500.0,0.00013698,2]
[422586143,1779126639000,-500.0,0.00013698,2]
[422586141,1779126639000,-500.0,0.00013698,2]
[422586157,1779126639000,-500.0,0.00013698,2]
[422586151,1779126639000,-500.0,0.00013698,2]
[422586145,1779126639000,-500.0,0.00013698,2]
[422586147,1779126639000,-500.0,0.00013698,2]
[422586149,1779126639000,-500.0,0.00013698,2]
[422586159,1779126639000,-500.0,0.00013698,2]
[422586161,1779126639000,-500.0,0.00013698,2]
[422586163,1779126639000,-500.0,0.00013698,2]
[422586167,1779126639000,-531.58244512,0.00013698,2]
[422586165,1779126639000,-500.0,0.00013698,2]
[422586169,1779126639000,-24999.99,0.00013699,2]
[422586188,1779126639000,-9999.99,0.00013699,2]
[422586179,1779126639000,-81138.56,0.00013699,2]
[422586175,1779126639000,-1628.27,0.00013699,2]
[422586183,1779126639000,-838.34,0.00013699,2]
[422586243,1779126639000,-798.95,0.00013915,2]
[422586253,1779126639000,-166.66,0.00013973,2]
[422586259,1779126639000,-250.0,0.00014,2]
[422586308,1779126639000,-448.92,0.00016438,2]
[422586323,1779126639000,-156.85,0.00016712,2]
[422586321,1779126639000,-150.0,0.0001664,2]
[422586325,1779126639000,-411.8,0.00016831,2]
[422586329,1779126639000,-4609.0,0.0001693,2]
[422586331,1779126639000,-1252.0,0.00017001,2]
[422586327,1779126639000,-1300.0,0.000169,6]
[422586333,1779126639000,-2000.0,0.00017042,2]
[422586342,1779126639000,-190.3,0.0001723,2]
[422586346,1779126639000,-166.66,0.00017725,2]
[422586343,1779126639000,-155.73624252,0.000177,2]
[422586337,1779126639000,-166.66,0.00017159,2]
[422586348,1779126639000,-151.0,0.00017738,2]
[422586304,1779126639000,-300.0,0.00016,2]
[422586335,1779126639000,-221.02648884,0.0001712,2]
[422586350,1779126639000,-151.0,0.00017738,2]
[422586352,1779126639000,-151.0,0.00017738,2]
[422586362,1779126639000,-151.0,0.00017738,2]
[422586366,1779126639000,-151.0,0.00017738,2]
[422586364,1779126639000,-151.0,0.00017738,2]
[422586368,1779126639000,-151.0,0.00017738,2]
[422586356,1779126639000,-151.0,0.00017738,2]
[422586370,1779126639000,-151.0,0.00017738,2]
[422586360,1779126639000,-151.0,0.00017738,2]
[422586354,1779126639000,-151.0,0.00017738,2]
[422586358,1779126639000,-151.0,0.00017738,2]
[422586372,1779126639000,-151.0,0.00017738,2]
[422586245,1779126639000,-500.0,0.00013915,2]
[422586339,1779126639000,-4147.31,0.00017171,2]
[422586306,1779126639000,-392.9,0.00016438,2]
[422586375,1779126639000,-151.0,0.00017738,2]
[422586302,1779126639000,-150.0,0.00015784,2]
[422586257,1779126639000,-2351.0,0.00013992,2]
[422586249,1779126639000,-382995.47544825,0.00013916,2]
[422586247,1779126639000,-500.0,0.00013915,2]
[422586251,1779126639000,-167.0,0.00013948,2]
[422586269,1779126639000,-166.66,0.00014384,2]
[422586267,1779126639000,-433.0,0.00014304,2]
[422586265,1779126639000,-166.66,0.00014247,2]
[422586263,1779126639000,-2000.0,0.00014201,2]
[422586319,1779126639000,-150.0,0.00016639,2]
[422586261,1779126639000,-166.66,0.0001411,2]
[422586271,1779126639000,-941.75,0.00014504,2]
[422586274,1779126639000,-941.75,0.00014504,2]
[422586284,1779126639000,-1578.74,0.00014504,2]
[422586286,1779126639000,-499.99,0.00014504,2]
[422586255,1779126639000,-4733.57306459,0.0001399,2]
[422586290,1779126639000,-8759.92093268,0.00014652,2]
[422586316,1779126639000,-150.0,0.00016639,2]
[422586288,1779126639000,-235.4,0.000146,2]
[422586315,1779126639000,-150.0,0.00016639,2]
[422586310,1779126639000,-299.28,0.00016438,2]
[422586312,1779126639000,-8759.92093268,0.00016558,2]
[422586296,1779126639000,-3292.0,0.00015391,2]
[422586300,1779126639000,-2000.0,0.00015622,2]
[422586298,1779126639000,-736.0,0.00015592,2]
[422586278,1779126639000,-798.95,0.00014504,2]
[422586280,1779126639000,-500.0,0.00014504,2]
[422586282,1779126639000,-531.67151914,0.00014504,2]
[422586275,1779126639000,-798.95,0.00014504,2]
[422586292,1779126639000,-250.0,0.00015103,2]
[422586294,1779126639000,-411.8,0.00015148,2]
[422586503,1779126640000,-154.25318114,0.0002,20]
[422586512,1779126640000,-927.0,0.00020104,2]
[422586509,1779126640000,-986.24,0.0002,2]
[422586506,1779126640000,-155.0,0.0002,2]
[422586500,1779126640000,-2694.0,0.0002,2]
[422586468,1779126640000,-166.66,0.00019424,2]
[422586474,1779126640000,-470.17,0.00019859,2]
[422586465,1779126640000,-150.0,0.000192,2]
[422586462,1779126640000,-166.66,0.00018858,2]
[422586480,1779126640000,-161.0,0.0002,2]
[422586497,1779126640000,-227.0,0.0002,2]
[422586494,1779126640000,-170.02119813,0.0002,2]
[422586515,1779126640000,-3543.0,0.00020104,2]
[422586560,1779126640000,-798.95,0.00020999,2]
[422586518,1779126640000,-1354.0,0.00020104,2]
[422586525,1779126640000,-150.0,0.00020104,2]
[422586531,1779126640000,-418.0,0.00020104,2]
[422586528,1779126640000,-1270.0,0.00020104,2]
[422586534,1779126640000,-411.8,0.00020197,2]
[422586537,1779126640000,-810.11,0.000202,2]
[422586543,1779126640000,-8759.92093268,0.0002037,2]
[422586540,1779126640000,-470.17,0.00020356,2]
[422586546,1779126640000,-392.9,0.00020381,2]
[422586550,1779126640000,-9035.0,0.00020485,2]
[422586559,1779126640000,-941.75,0.00020999,2]
[422586553,1779126640000,-150.76109754,0.0002058,2]
[422586488,1779126640000,-391.0,0.0002,2]
[422586522,1779126640000,-625.0,0.00020104,2]
[422586482,1779126640000,-400.0,0.0002,2]
[422586431,1779126640000,-500.0,0.00017808,2]
[422586477,1779126640000,-166.66,0.00019991,2]
[422586556,1779126640000,-470.17833181,0.00020852,2]
[422586378,1779126640000,-151.0,0.00017738,2]
[422586381,1779126640000,-151.0,0.00017738,2]
[422586384,1779126640000,-151.0,0.00017738,2]
[422586398,1779126640000,-500.0,0.00017808,2]
[422586395,1779126640000,-151.0,0.00017738,2]
[422586389,1779126640000,-151.0,0.00017738,2]
[422586392,1779126640000,-151.0,0.00017738,2]
[422586401,1779126640000,-500.0,0.00017808,2]
[422586404,1779126640000,-500.0,0.00017808,2]
[422586410,1779126640000,-500.0,0.00017808,2]
[422586407,1779126640000,-500.0,0.00017808,2]
[422586413,1779126640000,-500.0,0.00017808,2]
[422586485,1779126640000,-181.0,0.0002,2]
[422586419,1779126640000,-500.0,0.00017808,2]
[422586434,1779126640000,-500.0,0.00017808,2]
[422586438,1779126640000,-500.0,0.00017808,2]
[422586425,1779126640000,-500.0,0.00017808,2]
[422586428,1779126640000,-500.0,0.00017808,2]
[422586441,1779126640000,-350.0,0.00018,2]
[422586444,1779126640000,-166.66,0.00018291,2]
[422586447,1779126640000,-392.9,0.0001841,2]
[422586453,1779126640000,-411.8,0.00018514,2]
[422586456,1779126640000,-1429.0,0.0001853,2]
[422586450,1779126640000,-8759.92093268,0.00018464,2]
[422586459,1779126640000,-6453.0,0.00018623,2]
[422586491,1779126640000,-157.0,0.0002,2]
[422586471,1779126640000,-21352.50826713,0.00019424,2]
[422586422,1779126640000,-538.29242494,0.00017808,2]
[422586568,1779126640000,-9713.97317394,0.00021,2]
[422586416,1779126640000,-500.0,0.00017808,2]
[422586569,1779126640000,-161.0,0.00021,2]
[422586644,1779126640000,-161.0,0.00023,2]
[422586657,1779126640000,-625.0,0.00023104,2]
[422586648,1779126640000,-391.0,0.00023,2]
[422586655,1779126640000,-1219.855,0.00023104,2]
[422586661,1779126640000,-986.24,0.00023682,2]
[422586663,1779126640000,-610.68,0.00023744,2]
[422586665,1779126640000,-21352.50826713,0.00023843,2]
[422586669,1779126640000,-161.0,0.00024,2]
[422586673,1779126640000,-391.0,0.00024,2]
[422586671,1779126640000,-181.0,0.00024,2]
[422586667,1779126640000,-500.0,0.00024,2]
[422586675,1779126640000,-3996.51,0.00024087,2]
[422586684,1779126640000,-8759.92093268,0.00024182,2]
[422586659,1779126640000,-418.0,0.00023104,2]
[422586682,1779126640000,-1492.45,0.00024174,2]
[422586676,1779126640000,-219.6,0.00024174,2]
[422586679,1779126640000,-951.65,0.00024174,2]
[422586686,1779126640000,-392.9,0.00024324,2]
[422586688,1779126640000,-4474.91678066,0.00024397,2]
[422586702,1779126640000,-179.26,0.00024658,2]
[422586704,1779126640000,-1000.0,0.00024658,2]
[422586706,1779126640000,-150.0,0.00024929,4]
[422586690,1779126640000,-4474.91678066,0.00024397,2]
[422586700,1779126640000,-151.0,0.00024658,2]
[422586693,1779126640000,-810.11,0.000244,7]
[422586695,1779126640000,-151.0,0.00024658,2]
[422586697,1779126640000,-151.0,0.00024658,2]
[422586565,1779126640000,-10784.91573436,0.00021,2]
[422586677,1779126640000,-651.66,0.00024174,2]
[422586646,1779126640000,-181.0,0.00023,2]
[422586674,1779126640000,-227.0,0.00024,2]
[422586653,1779126640000,-927.0,0.00023104,2]
[422586574,1779126640000,-181.0,0.00021,2]
[422586576,1779126640000,-391.0,0.00021,2]
[422586580,1779126640000,-157.0,0.00021,2]
[422586651,1779126640000,-227.0,0.00023,2]
[422586589,1779126640000,-221.02648884,0.00021442,2]
[422586586,1779126640000,-155.0,0.00021,2]
[422586592,1779126640000,-21352.50826713,0.00021633,2]
[422586595,1779126640000,-190.3,0.00021669,2]
[422586606,1779126640000,-161.0,0.00022,2]
[422586599,1779126640000,-986.24,0.00021841,2]
[422586604,1779126640000,-610.68,0.00021918,2]
[422586600,1779126640000,-5000.0,0.00021918,2]
[422586612,1779126640000,-391.0,0.00022,2]
[422586610,1779126640000,-181.0,0.00022,2]
[422586608,1779126640000,-450.0,0.00022,2]
[422586583,1779126640000,-227.0,0.00021,2]
[422586626,1779126640000,-5000.0,0.00022009,2]
[422586614,1779126640000,-164.19920998,0.00022,2]
[422586641,1779126640000,-492.0,0.00023,2]
[422586637,1779126640000,-10782.0,0.00022534,2]
[422586635,1779126640000,-392.9,0.00022353,2]
[422586633,1779126640000,-8759.92093268,0.00022276,2]
[422586616,1779126640000,-227.0,0.00022,2]
[422586639,1779126640000,-155.73624252,0.00022602,2]
[422586622,1779126640000,-5037.79875775,0.00022009,2]
[422586629,1779126640000,-5000.0,0.00022009,2]
[422586618,1779126640000,-163.09958891,0.00022,2]
[422586620,1779126640000,-8198.96,0.00022,2]
[422586624,1779126640000,-5000.0,0.00022009,2]
[422586631,1779126640000,-5000.0,0.00022009,2]
[422586739,1779126641000,-150.0,0.00025186,4]
[422586741,1779126641000,-150.0,0.00025237,4]
[422586743,1779126641000,-150.0,0.00025251,4]
[422586754,1779126641000,-411.61329375,0.00025397,2]
[422586755,1779126641000,-150.0,0.00025444,4]
[422586757,1779126641000,-150.0,0.00025483,4]
[422586761,1779126641000,-986.24,0.00025523,7]
[422586737,1779126641000,-150.0,0.0002516,4]
[422586746,1779126641000,-150.0,0.00025275,4]
[422586748,1779126641000,-150.0,0.00025315,4]
[422586719,1779126641000,-150.0,0.00024993,4]
[422586727,1779126641000,-227.0,0.00025,2]
[422586721,1779126641000,-168.0,0.00025,2]
[422586723,1779126641000,-198.0,0.00025,2]
[422586725,1779126641000,-407.72611124,0.00025,2]
[422586733,1779126641000,-215.11887611,0.00025066,7]
[422586731,1779126641000,-150.0,0.00025058,4]
[422586729,1779126641000,-8198.96,0.00025042,7]
[422586717,1779126641000,-150.0,0.00024929,4]
[422586714,1779126641000,-150.0,0.00024929,4]
[422586712,1779126641000,-150.0,0.00024929,4]
[422586710,1779126641000,-150.0,0.00024929,4]
[422586750,1779126641000,-150.0,0.0002538,4]
[422586735,1779126641000,-150.0,0.00025122,4]
[422586760,1779126641000,-150.0,0.00025509,4]
[422586708,1779126641000,-150.0,0.00024929,4]
[422586765,1779126641000,-610.68,0.00025571,2]
[422586752,1779126641000,-150.0,0.0002539,4]
[422586818,1779126641000,-670.08400634,0.00026052,2]
[422586813,1779126641000,-13784.47779442,0.00026052,2]
[422586807,1779126641000,-550.0,0.00026,2]
[422586809,1779126641000,-150.0,0.00026024,4]
[422586803,1779126641000,-150.0,0.00025959,4]
[422586805,1779126641000,-150.0,0.00025967,4]
[422586801,1779126641000,-150.0,0.00025895,4]
[422586797,1779126641000,-150.0,0.00025852,4]
[422586795,1779126641000,-150.0,0.00025831,4]
[422586792,1779126641000,-1492.45,0.00025786,2]
[422586799,1779126641000,-150.0,0.00025852,4]
[422586811,1779126641000,-150.0,0.00026037,4]
[422586773,1779126641000,-150.0,0.00025637,4]
[422586767,1779126641000,-150.0,0.00025573,4]
[422586791,1779126641000,-951.65,0.00025786,2]
[422586770,1779126641000,-150.0,0.00025621,4]
[422586781,1779126641000,-221.02648884,0.00025765,2]
[422586784,1779126641000,-150.0,0.00025766,4]
[422586763,1779126641000,-150.0,0.00025544,4]
[422586789,1779126641000,-651.66,0.00025786,2]
[422586778,1779126641000,-150.00000001,0.00025742,4]
[422586787,1779126641000,-219.6,0.00025786,2]
[422586776,1779126641000,-150.0,0.00025702,4]
[422586771,1779126641000,-150.0,0.00025621,4]
[422587106,1779126643000,-402.0,0.0002,2]
[422587107,1779126643000,-232.80217654,0.00020104,2]
[422587425,1779126646000,-190.3,0.00026107,2]
[422587421,1779126646000,-150.0,0.00026088,4]
[422587427,1779126646000,-27838.3560171,0.00026123,2]
[422587430,1779126646000,-2313.0,0.0002616,3]
[422587424,1779126646000,-3632.0,0.00026104,2]
[422587422,1779126646000,-927.0,0.00026104,2]
[422587417,1779126646000,-3632.0,0.00023104,2]
[422587415,1779126646000,-402.0,0.00022,2]
[422587418,1779126646000,-6897.94646637,0.00026052,2]
[422587416,1779126646000,-402.0,0.00023,2]
[422587414,1779126646000,-402.0,0.00021,2]
[422587419,1779126646000,-150.0,0.00026083,4]
[422587413,1779126646000,-3399.19782346,0.00020104,2]
[422587426,1779126646000,-1770.65065623,0.00026123,2]
[422587420,1779126646000,-8759.92093268,0.00026088,2]
[422587429,1779126646000,-150.0,0.0002616,4]
[422587449,1779126646000,-150.0,0.0002641,4]
[422587423,1779126646000,-418.0,0.00026104,2]
[422587459,1779126646000,-150.0,0.00026468,4]
[422587453,1779126646000,-163.0,0.00026444,3]
[422587457,1779126646000,-2313.0,0.00026444,3]
[422587455,1779126646000,-2313.0,0.00026444,3]
[422587428,1779126646000,-150.0,0.00026153,4]
[422587447,1779126646000,-411.61329375,0.00026397,2]
[422587451,1779126646000,-200.0,0.00026416,2]
[422587443,1779126646000,-150.0,0.00026346,4]
[422587445,1779126646000,-255.92536398,0.00026397,2]
[422587438,1779126646000,-150.0,0.00026314,4]
[422587436,1779126646000,-392.9,0.00026296,2]
[422587434,1779126646000,-150.0,0.00026281,4]
[422587432,1779126646000,-150.0,0.00026217,4]
[422587431,1779126646000,-2313.0,0.0002616,3]
[422587441,1779126646000,-150.0,0.00026314,4]
[422587471,1779126647000,-941.75,0.0002652,2]
[422587474,1779126647000,-798.95,0.0002652,2]
[422587476,1779126647000,-17876.68584266,0.0002652,2]
[422587461,1779126647000,-272.0,0.00026474,10]
[422587463,1779126647000,-445.0,0.00026474,10]
[422587479,1779126647000,-457.19582111,0.0002652,2]
[422587467,1779126647000,-215.94512088,0.00026487,3]